bitfinex/quotes_ETHUSD_20220310
["timestamp","ask_amount","ask_price","bid_price","bid_amount"]
[1646953154154,1.05861658,2614.0,2613.9,0.552]
[1646953154354,1.05861658,2614.0,2613.9,4.352]
[1646953154554,1.0,2614.0,2613.9,4.352]
[1646953154754,1.0,2614.0,2613.9,5.352]
[1646953156902,0.99854993,2614.0,2613.9,5.352]
[1646953159049,0.99854993,2614.0,2613.9,5.39343125]
[1646953160556,0.99854993,2614.0,2613.9,5.34343125]
[1646953162357,1.0,2614.1,2613.9,5.34343125]
[1646953162558,1.0,2614.1,2614.0,4.95651]
[1646953162804,1.0,2614.1,2614.0,7.05192631]
[1646953163005,1.0,2614.1,2614.0,18.77192631]
[1646953163206,1.0,2614.1,2614.0,19.77192631]
[1646953163612,0.3836172,2615.1,2614.0,22.77192631]
[1646953163809,1.57642235,2615.0,2614.4,0.95639]
[1646953164008,1.57642235,2614.9,2614.5,0.552]
[1646953164208,0.89378759,2615.5,2614.5,0.552]
[1646953164410,1.57755745,2615.4,2614.5,2.0607]
[1646953164708,0.00380051,2615.1,2614.6,3.5]
[1646953164908,0.00380051,2615.1,2614.7,0.552]
[1646953165308,0.00380051,2615.1,2614.7,0.852]
[1646953165513,0.00380051,2615.1,2614.7,1.80837]
[1646953165712,1.57634025,2615.4,2614.7,1.80837]
[1646953165911,0.00396301,2615.0,2614.7,1.80837]
[1646953166954,1.57634025,2615.3,2614.7,1.80837]
[1646953167153,4.40772776,2615.6,2614.7,1.80837]
[1646953167154,0.00396305,2615.0,2614.7,1.80837]
[1646953167555,1.5803033,2615.0,2614.7,1.80837]
[1646953167755,1.00396305,2615.0,2614.8,3.5]
[1646953167955,1.00396305,2615.0,2614.8,4.052]
[1646953168154,1.00396305,2615.0,2614.8,1.552]
[1646953168155,1.0,2615.0,2614.8,1.552]
[1646953168356,1.00394317,2615.0,2614.8,0.552]
[1646953169256,1.0,2615.0,2614.8,0.552]
[1646953169656,1.00375695,2615.0,2614.8,0.552]
[1646953170505,1.0,2615.0,2614.9,0.04091445]
[1646953170705,1.00375695,2615.0,2614.9,0.04091445]
[1646953171705,1.0,2615.0,2614.9,0.04091445]
[1646953174958,1.0,2615.0,2614.9,0.04094708]
[1646953176363,1.0,2615.0,2614.9,3.54094708]
[1646953176563,1.0,2615.0,2614.9,4.09294708]
[1646953176768,1.0,2615.0,2614.9,1.89294708]
[1646953177164,1.0,2615.0,2614.9,0.89294708]
[1646953179026,1.0,2615.0,2614.9,0.04094708]
[1646953179226,2.57636801,2615.0,2614.9,0.04094708]
[1646953179627,0.03498955,2614.8,2614.2,3.5]
[1646953179825,0.03498955,2614.8,2614.1,0.58856318]
[1646953180428,0.00377614,2614.6,2614.1,0.58856318]
[1646953180630,0.00377614,2614.6,2614.1,0.88856318]
[1646953181433,1.57652765,2614.7,2614.1,0.88710149]
[1646953181964,0.00377621,2614.5,2614.1,0.88710149]
[1646953182458,0.00377621,2614.5,2614.1,4.38710149]
[1646953182659,1.57652765,2614.7,2614.1,5.38710149]
[1646953182860,0.00377624,2614.4,2614.1,5.38710149]
[1646953183061,0.00377624,2614.4,2614.1,1.88710149]
[1646953183261,0.00377624,2614.4,2614.2,0.95665]
[1646953183461,0.00377624,2614.4,2614.3,0.552]
[1646953183861,0.03498955,2614.8,2614.3,0.852]
[1646953184061,0.00377624,2614.4,2614.3,0.852]
[1646953184464,0.00377624,2614.4,2614.3,0.88815619]
[1646953185062,0.03498955,2614.8,2614.3,0.88815619]
[1646953185304,0.00377621,2614.5,2614.3,0.88815619]
[1646953185910,0.00377621,2614.5,2614.4,0.95659]
[1646953186110,0.00377621,2614.5,2614.4,1.50859]
[1646953186308,0.03498955,2614.8,2614.4,1.50859]
[1646953186508,0.00377618,2614.5,2614.4,1.50859]
[1646953187310,0.03498955,2614.8,2614.4,1.50859]
[1646953187609,0.00377614,2614.6,2614.4,1.50859]
[1646953188213,0.00377614,2614.6,2614.4,0.552]
[1646953188610,0.03498955,2614.8,2614.4,0.552]
[1646953188810,0.00377611,2614.6,2614.4,0.552]
[1646953189258,0.00377611,2614.6,2614.4,1.50858]
[1646953189858,0.03498955,2614.8,2614.4,1.50858]
[1646953190058,0.00377611,2614.6,2614.4,1.50858]
[1646953190461,0.00377611,2614.6,2614.4,1.53279978]
[1646953190861,1.00386781,2615.0,2614.4,1.53279978]
[1646953191063,0.98876566,2615.0,2614.4,1.53279978]
[1646953192266,1.57631561,2614.9,2614.4,0.57621978]
[1646953193701,0.00228024,2614.8,2614.4,0.57621978]
[1646953194502,0.00228024,2614.8,2614.4,1.53279978]
[1646953194701,1.57631561,2614.9,2614.4,1.53279978]
[1646953194907,0.00437267,2614.7,2614.6,0.02419055]
[1646953195909,0.98876566,2615.0,2614.6,0.02419055]
[1646953196108,0.00437263,2614.8,2614.6,0.02419055]
[1646953197057,0.98876566,2615.0,2614.6,0.02419055]
[1646953197258,0.00437258,2614.8,2614.6,0.02419055]
[1646953198259,0.98876566,2615.0,2614.6,0.02419055]
[1646953198460,0.00437258,2614.8,2614.6,0.02419055]
[1646953199461,0.98876566,2615.0,2614.6,0.02419055]
[1646953199661,0.00424141,2614.8,2614.6,0.01182709]
[1646953200307,0.98876566,2615.0,2614.6,0.01182709]
[1646953200308,0.94300707,2615.0,2614.6,0.01182709]
[1646953200512,1.57628467,2614.9,2614.6,0.01182709]
[1646953201312,1.76748467,2614.9,2614.6,0.01182709]
[1646953201513,1.57628467,2614.8,2614.6,0.01182709]
[1646953202512,1.57628467,2614.7,2614.6,0.01182709]
[1646953202718,1.57856203,2614.9,2614.6,0.01182709]
[1646953202914,1.57628467,2614.7,2614.6,0.01182709]
[1646953203113,1.57628467,2614.9,2614.6,0.01182709]
[1646953203313,1.57628467,2614.8,2614.6,0.01182709]
[1646953203512,1.58043939,2614.9,2614.6,0.01182709]
[1646953203713,1.57628467,2614.8,2614.6,0.01182709]
[1646953203912,0.94300707,2615.0,2614.6,0.01182709]
[1646953203913,1.53043939,2614.7,2614.6,0.01182709]
[1646953204155,0.94300707,2615.0,2614.6,0.96855459]
[1646953204355,0.94300707,2615.0,2614.8,0.04239164]
[1646953204755,0.94300707,2615.0,2614.6,0.01182709]
[1646953204957,0.94300707,2615.0,2614.9,0.33085361]
[1646953205156,0.94300707,2615.0,2614.6,0.86382709]
[1646953205363,0.94300707,2615.0,2614.8,0.9566296]
[1646953205560,0.94300707,2615.0,2614.9,0.3]
[1646953205963,0.94300707,2615.0,2614.9,0.89439164]
[1646953206361,0.94300707,2615.0,2614.9,1.22524525]
[1646953207564,0.71289977,2615.6,2614.9,4.72524525]
[1646953207824,13.17568173,2616.1,2614.9,4.72524525]
[1646953207825,0.67462778,2616.2,2615.0,1.075]
[1646953208027,2.26980796,2616.6,2615.2,0.384]
[1646953208028,0.70779055,2616.1,2615.2,0.384]
[1646953208225,0.70779055,2616.6,2616.1,0.07077905]
[1646953208423,0.04035807,2616.3,2616.2,0.552]
[1646953208723,0.01038772,2616.7,2616.3,0.884]
[1646953208922,0.01038772,2616.7,2616.5,1.33956]
[1646953209123,0.01038772,2616.7,2616.6,4.436]
[1646953209321,0.02077544,2616.7,2616.6,6.09543234]
[1646953209521,0.02077544,2616.7,2616.6,7.43782398]
[1646953209723,0.0061764,2616.9,2616.8,0.384]
[1646953209924,0.0123528,2617.0,2616.8,4.436]
[1646953210125,0.0375768,2617.7,2617.0,0.955343]
[1646953210327,0.0375768,2617.7,2617.1,4.052]
[1646953210328,0.0091948,2617.5,2617.1,4.052]
[1646953210531,0.0091948,2617.5,2617.1,4.736]
[1646953210726,0.0091948,2617.5,2617.1,5.736]
[1646953211128,0.0091948,2617.5,2617.4,0.95533]
[1646953211327,0.0091948,2617.5,2617.4,1.50733]
[1646953211612,0.0091948,2617.5,2617.4,1.80733]
[1646953212202,0.0091948,2617.5,2617.4,5.30733]
[1646953212404,0.0091948,2617.5,2617.4,1.80733]
[1646953212604,0.0091948,2617.5,2617.4,2.18057525]
[1646953212805,0.0091948,2617.5,2617.4,1.22524525]
[1646953213403,0.0091948,2617.5,2617.4,0.67324525]
[1646953213805,0.0091948,2617.5,2617.4,0.37324525]
[1646953214006,0.0972548,2617.5,2617.4,0.37324525]
[1646953214706,0.0972548,2617.5,2617.4,1.84167759]
[1646953215516,1.0972548,2617.5,2617.4,1.84167759]
[1646953216717,0.0972548,2617.5,2617.4,1.84167759]
[1646953217318,0.0091948,2617.5,2617.4,1.84167759]
[1646953222905,0.01100048,2617.6,2617.4,1.84167759]
[1646953222906,0.04032848,2617.7,2617.4,1.84167759]
[1646953223106,0.04032848,2617.7,2617.4,1.46843234]
[1646953223310,0.04032848,2617.7,2616.7,1.9114105]
[1646953223311,0.04032848,2617.7,2617.6,0.37324525]
[1646953223507,0.04032848,2617.7,2617.6,0.04239164]
[1646953223706,0.04032848,2617.7,2617.2,1.46843234]
[1646953223907,1.46869767,2617.6,2617.2,1.46843234]
[1646953224108,0.04032848,2617.7,2617.2,1.76843234]
[1646953224908,0.04228273,2617.7,2617.4,0.37324525]
[1646953225111,0.04228273,2617.7,2617.5,4.052]
[1646953225308,0.04228273,2617.7,2617.6,3.5]
[1646953225513,0.04228273,2617.7,2617.3,2.436]
[1646953225711,0.04228273,2617.7,2617.6,0.684]
[1646953225915,0.04032848,2617.7,2617.6,1.236]
[1646953226311,0.04228277,2617.7,2617.6,1.236]
[1646953226572,0.04228277,2617.7,2617.6,1.60924525]
[1646953227257,0.04032848,2617.7,2617.6,5.10924525]
[1646953227460,0.04032848,2617.7,2617.6,6.06454525]
[1646953227858,0.04032848,2617.7,2617.6,7.06454525]
[1646953228261,0.019483,2618.0,2617.9,0.0084103]
[1646953228464,0.019483,2618.0,2617.9,0.5604103]
[1646953228861,0.019483,2618.0,2617.9,2.02884264]
[1646953230306,0.019483,2618.0,2617.9,2.40208789]
[1646953230509,0.019483,2618.0,2617.9,1.85008789]
[1646953231311,0.108403,2618.0,2617.9,1.85008789]
[1646953232112,0.019483,2618.0,2617.9,1.85008789]
[1646953233012,0.019483,2618.0,2616.7,1.7329]
[1646953233312,1.0,2617.8,2616.7,1.7329]
[1646953233513,4.45579,2617.7,2616.7,1.5077644]
[1646953233717,4.45579,2617.7,2616.7,0.552]
[1646953234160,4.45579,2617.7,2616.4,0.743]
[1646953234161,0.47342,2617.6,2616.4,0.743]
[1646953234373,0.47342,2617.6,2616.1,0.07077905]
[1646953234374,1.0,2617.0,2616.1,0.07077905]
[1646953234665,7.5457,2616.9,2616.1,0.07077905]
[1646953234860,7.5457,2616.9,2616.2,0.00439064]
[1646953234861,4.73963037,2616.9,2616.2,0.00439064]
[1646953235060,0.19393037,2616.8,2616.2,0.00439064]
[1646953235462,0.19393037,2616.8,2616.1,0.07077905]
[1646953235864,0.19393037,2616.8,2616.2,0.00439003]
[1646953236467,0.95615,2616.7,2616.2,0.00439003]
[1646953236671,0.95615,2616.7,2616.1,0.07077905]
[1646953237067,4.69393037,2616.8,2616.2,0.00424185]
[1646953237269,1.0,2616.6,2616.2,0.00424185]
[1646953237906,1.0,2616.6,2616.1,0.07077905]
[1646953238305,1.0,2616.6,2616.2,0.00424176]
[1646953239107,1.0,2616.6,2616.1,0.07077905]
[1646953239311,1.0,2616.6,2616.3,0.03703408]
[1646953239510,0.08803,2616.7,2616.3,0.03703408]
[1646953239910,6.73742452,2617.2,2616.3,0.03703408]
[1646953240112,1.46941462,2617.1,2616.3,0.03703408]
[1646953240311,3.5,2617.0,2616.3,0.03703408]
[1646953240517,1.47031427,2616.9,2616.3,0.03703408]
[1646953240717,3.5,2616.8,2616.3,0.03703408]
[1646953241216,1.0,2616.5,2616.3,0.03703408]
[1646953241663,1.47132801,2616.4,2616.3,0.03703408]
[1646953242064,2.47132801,2616.4,2616.3,0.03703408]
[1646953242861,5.97205952,2616.4,2616.3,0.03703408]
[1646953243262,6.97205952,2616.4,2616.3,0.03703408]
[1646953244180,6.97205952,2616.4,2616.3,0.01226715]
[1646953245813,3.47205952,2616.4,2616.3,0.01226715]
[1646953246212,6.97205952,2616.4,2616.3,0.01226715]
[1646953246618,5.97205952,2616.4,2616.3,0.01226715]
[1646953246913,6.16598989,2616.4,2616.3,0.01226715]
[1646953247311,7.16598989,2616.4,2616.3,0.01226715]
[1646953248013,10.16598989,2616.4,2616.3,6.715e-05]
[1646953248214,21.97400989,2616.4,2616.3,6.715e-05]
[1646953248412,12.17,2616.3,2616.1,0.07077905]
[1646953248612,8.06007952,2616.2,2616.1,0.07077905]
[1646953248813,8.06007952,2616.2,2615.0,1.6245]
[1646953248814,1.0,2615.8,2615.0,1.6245]
[1646953249061,1.9132,2615.9,2615.0,1.6245]
[1646953249062,3.5,2615.7,2615.0,1.6245]
[1646953249266,3.5,2615.7,2614.8,1.5163]
[1646953249267,5.5,2615.7,2614.8,1.5163]
[1646953249465,6.45664,2615.7,2614.8,1.5163]
[1646953249664,0.95658,2615.5,2614.8,1.5163]
[1646953249862,0.95658,2615.5,2614.8,0.3]
[1646953250062,0.95658,2615.5,2614.5,3.3947]
[1646953250262,5.45658,2615.5,2614.6,0.08095292]
[1646953250466,1.9135,2615.4,2614.6,0.08095292]
[1646953250669,0.95681,2615.2,2614.6,0.08095292]
[1646953251265,0.95681,2615.2,2614.2,1.8804]
[1646953251465,3.5,2615.1,2614.8,0.00439105]
[1646953251668,1.91369,2615.0,2614.8,0.00439105]
[1646953251870,3.5,2614.9,2614.8,0.00439105]
[1646953252067,4.5,2614.9,2614.8,0.00439105]
[1646953252468,4.5,2614.9,2613.8,1.1517]
[1646953252469,4.78220037,2614.9,2613.8,1.1517]
[1646953252666,2.00223,2614.8,2614.7,0.00406974]
[1646953252909,5.41395,2614.8,2614.7,0.00406974]
[1646953253110,6.41395,2614.8,2614.7,0.00406974]
[1646953253310,10.41395,2614.8,2614.7,0.00406974]
[1646953253510,10.41395,2614.8,2613.9,0.08114]
[1646953253713,10.37089,2614.8,2613.8,0.3]
[1646953253912,1.95704,2614.5,2613.8,0.3]
[1646953254110,5.45704,2614.5,2613.6,0.05]
[1646953254515,6.45704,2614.5,2613.6,0.05]
[1646953254711,5.45704,2614.5,2613.7,0.08098945]
[1646953254912,1.0,2614.4,2613.7,0.08098945]
[1646953255116,0.95704,2614.3,2613.9,0.0040703]
[1646953255916,0.95704,2614.3,2613.6,0.05]
[1646953256116,4.45704,2614.3,2613.6,0.05]
[1646953256318,4.45704,2614.3,2614.0,0.00407026]
[1646953256574,0.95704,2614.3,2614.0,0.00407026]
[1646953257271,0.95704,2614.3,2613.7,0.0808829]
[1646953257465,0.95704,2614.3,2614.0,0.00409691]
[1646953258066,2.0,2614.4,2614.0,0.00409691]
[1646953258268,1.0,2614.4,2614.0,0.00409691]
[1646953258465,1.0,2614.4,2613.6,0.05]
[1646953258665,1.0,2614.4,2614.0,0.00409691]
[1646953258866,6.41415,2614.4,2614.0,0.00409691]
[1646953259267,0.95701,2614.3,2614.1,0.02532619]
[1646953259666,1.95701,2614.3,2614.1,0.02532619]
[1646953259872,1.95701,2614.3,2614.1,0.02942307]
[1646953260311,3.5,2614.2,2614.1,0.02942307]
[1646953260516,4.5,2614.2,2614.1,0.02942307]
[1646953260717,4.5,2614.2,2614.1,0.02532619]
[1646953260718,5.5,2614.2,2614.1,0.02532619]
[1646953261516,5.5,2614.2,2614.1,2.619e-05]
[1646953261715,2.0,2614.2,2614.1,2.619e-05]
[1646953262115,1.0,2614.2,2614.1,2.619e-05]
[1646953262923,3.5,2614.2,2614.1,2.619e-05]
[1646953263120,4.5,2614.2,2614.1,2.619e-05]
[1646953263324,5.5,2614.2,2614.1,2.619e-05]
[1646953263721,5.53804,2614.2,2614.1,2.619e-05]
[1646953263919,5.53804,2614.2,2614.1,0.01378886]
[1646953265166,5.73197037,2614.2,2614.1,0.01378886]
[1646953265967,2.23197037,2614.2,2614.1,0.01378886]
[1646953266166,2.19393037,2614.2,2614.1,0.01378886]
[1646953266365,1.19393037,2614.2,2614.1,0.01378886]
[1646953267367,4.69393037,2614.2,2614.1,0.01378886]
[1646953267814,5.69393037,2614.2,2614.1,0.01378886]
[1646953268311,0.04460141,2613.9,2613.0,2.3731]
[1646953268710,0.04460141,2613.9,2613.0,2.6731]
[1646953271116,0.04460141,2613.9,2613.2,0.9570685]
[1646953271315,0.04460141,2613.9,2613.3,0.3]
[1646953271764,0.04460141,2613.9,2613.4,0.00439599]
[1646953272768,0.04460141,2613.9,2613.2,0.3]
[1646953272969,0.04460141,2613.9,2613.5,0.00417271]
[1646953273966,0.04460141,2613.9,2613.4,1.2570396]
[1646953274365,0.04460141,2613.9,2613.6,0.00417267]
[1646953275313,0.04460141,2613.9,2613.4,1.2570396]
[1646953275519,0.04460141,2613.9,2613.6,0.00417263]
[1646953276321,0.04460141,2613.9,2613.4,1.2570396]
[1646953276521,0.04460141,2613.9,2613.6,0.9570068]
[1646953276723,0.04460141,2613.9,2613.6,1.26105425]
[1646953277022,0.04460141,2613.9,2613.6,0.30404745]
[1646953277522,0.04460141,2613.9,2613.6,0.3]
[1646953277722,0.04460141,2613.9,2613.2,0.35707354]
[1646953277921,0.04460141,2613.9,2613.6,0.00395574]
[1646953278723,0.04460141,2613.9,2613.4,1.2570733]
[1646953279164,0.04460141,2613.9,2613.8,0.05644177]
[1646953280062,3.54460141,2613.9,2613.8,0.05644177]
[1646953280266,4.54460141,2613.9,2613.8,0.05644177]
[1646953280667,1.04460141,2613.9,2613.8,0.05644177]
[1646953280871,4.54460141,2613.9,2613.8,0.05644177]
[1646953281069,0.04460141,2613.9,2613.8,0.05644177]
[1646953281269,1.04460141,2613.9,2613.8,0.05644177]
[1646953281468,0.04460141,2613.9,2613.8,0.05644177]
[1646953284217,0.04460141,2613.9,2613.8,0.08430358]
[1646953289368,0.04460141,2613.9,2613.8,1.99842488]
[1646953289568,0.04460141,2613.9,2613.8,1.97006039]
[1646953289767,0.04460141,2613.9,2613.8,0.05593909]
[1646953292236,1.57174763,2613.9,2613.8,0.05593909]
[1646953293239,1.57174763,2613.9,2613.8,0.13478239]
[1646953293440,1.57174763,2613.9,2613.8,0.05593909]
[1646953294466,1.57174763,2613.9,2613.8,0.02841315]
[1646953295167,1.57174763,2613.9,2613.8,0.10725691]
[1646953295769,2.57174763,2613.9,2613.8,0.10725691]
[1646953296374,3.57174763,2613.9,2613.8,0.10725691]
[1646953297272,3.59226734,2613.9,2613.8,0.10725691]
[1646953299315,3.59226734,2613.9,2613.8,0.40725691]
[1646953299515,3.59226734,2613.9,2613.8,0.43483506]
[1646953300117,2.04460141,2613.9,2613.8,0.13483506]
[1646953300317,2.59324291,2613.9,2613.8,0.43483506]
[1646953300519,2.59324291,2613.9,2613.8,0.13483506]
[1646953300720,3.59324291,2613.9,2613.8,0.43483506]
[1646953300919,2.59324291,2613.9,2613.8,0.43483506]
[1646953301121,3.59324291,2613.9,2613.8,0.13483506]
[1646953301323,3.59324291,2613.9,2613.8,0.43483506]
[1646953301586,3.59335586,2613.9,2613.8,0.43483506]
[1646953302172,3.59335586,2613.9,2613.8,0.13483506]
[1646953302375,3.59335586,2613.9,2613.8,0.43483506]
[1646953303173,3.59335586,2613.9,2613.8,0.13483506]
[1646953303374,3.59335586,2613.9,2613.8,0.43483506]
[1646953303775,3.59335586,2613.9,2613.5,2.2140868]
[1646953303974,2.04460141,2613.9,2613.8,0.11073178]
[1646953304375,1.04460141,2613.9,2613.8,0.11073178]
[1646953305622,1.04460141,2613.9,2613.8,0.41073178]
[1646953305822,1.04460141,2613.9,2613.8,0.11073178]
[1646953306422,1.04460141,2613.9,2613.3,1.9141122]
[1646953306423,0.10568731,2613.6,2613.3,1.9141122]
[1646953306621,0.10568731,2613.6,2613.4,0.3]
[1646953307522,0.10568731,2613.6,2613.3,0.3]
[1646953309077,0.10568731,2613.6,2613.3,0.30181528]
[1646953309967,0.10568731,2613.6,2613.3,0.3]
[1646953310370,0.10568731,2613.6,2613.3,0.30181528]
[1646953311270,0.10568731,2613.6,2613.4,0.9570976]
[1646953312674,0.10568731,2613.6,2613.4,0.96125981]
[1646953313616,0.10568731,2613.6,2613.4,0.9570976]
[1646953313816,0.10568731,2613.6,2613.5,0.552]
[1646953314115,0.10568731,2613.6,2613.5,0.852]
[1646953314716,0.10568731,2613.6,2613.5,0.91337113]
[1646953315314,0.10568731,2613.6,2613.5,1.61308294]
[1646953318068,0.10568731,2613.6,2613.5,0.91337113]
[1646953319269,0.10568731,2613.6,2613.5,0.89304333]
[1646953320438,0.10568731,2613.6,2613.5,0.34104333]
[1646953320638,0.10568731,2613.6,2613.5,0.04104333]
[1646953320837,0.10568731,2613.6,2613.5,0.34104333]
[1646953321238,0.10568731,2613.6,2613.5,0.04104333]
[1646953323940,0.10568731,2613.6,2613.5,0.11988654]
[1646953323941,1.66063548,2613.6,2613.5,0.11988654]
[1646953324173,1.66063548,2613.6,2613.5,0.14065902]
[1646953326476,0.10568731,2613.6,2613.5,0.14065902]
[1646953326676,1.66070885,2613.6,2613.5,0.14065902]
[1646953326877,0.10568731,2613.6,2613.5,0.14065902]
[1646953327178,0.10568731,2613.6,2613.5,0.84037083]
[1646953329021,0.10568731,2613.6,2613.5,0.86006781]
[1646953329223,0.10568731,2613.6,2613.5,0.87024413]
[1646953330233,0.10454502,2613.6,2613.5,0.87024413]
[1646953331031,0.10454502,2613.6,2613.5,0.17053232]
[1646953331869,1.65934939,2613.6,2613.5,0.17053232]
[1646953333670,1.659358,2613.6,2613.5,0.17053232]
[1646953334070,1.659358,2613.6,2613.5,0.20107866]
[1646953334269,0.10454502,2613.6,2613.5,0.20107866]
[1646953339174,0.10454502,2613.6,2613.5,0.17053232]
[1646953341281,4.64744724,2614.5,2613.5,0.17053232]
[1646953341282,13.16651375,2615.2,2613.6,1.6593]
[1646953341481,0.01505616,2614.5,2614.1,0.01225654]
[1646953341684,3.82841,2615.3,2614.2,1.12310181]
[1646953341685,0.70776345,2615.0,2614.2,1.12310181]
[1646953341883,3.23037038,2615.3,2614.7,6.91574741]
[1646953342082,1.31321415,2615.2,2614.8,4.51484321]
[1646953342281,1.31321415,2615.2,2614.9,0.07884321]
[1646953342482,1.31321415,2615.2,2615.0,0.552]
[1646953342679,1.31321415,2615.2,2615.1,0.07884321]
[1646953342922,1.31321415,2615.2,2615.1,0.63084321]
[1646953343326,1.31321415,2615.2,2615.1,0.93084321]
[1646953343523,1.31321415,2615.2,2615.1,1.88724271]
[1646953344124,1.0,2615.5,2615.1,1.88724271]
[1646953344323,1.0,2615.5,2615.2,0.07884321]
[1646953344324,1.18593348,2615.4,2615.2,0.07884321]
[1646953344521,1.18593348,2615.4,2615.3,1.50825]
[1646953344721,1.0,2615.5,2615.3,2.84325781]
[1646953344920,1.0,2615.5,2615.4,0.07884321]
[1646953345124,1.0,2615.5,2615.4,0.63084321]
[1646953345725,1.0,2615.5,2615.4,4.13084321]
[1646953345932,1.0,2615.5,2615.4,5.13084321]
[1646953346128,0.0011406,2616.3,2615.6,0.9559703]
[1646953346330,1.18378438,2616.6,2615.8,0.95599]
[1646953346581,0.01755855,2616.0,2615.9,4.052]
[1646953347272,0.70766695,2617.0,2616.0,0.00854523]
[1646953347273,0.0011406,2616.8,2616.0,0.00854523]
[1646953347473,0.95597,2617.4,2616.2,0.95594]
[1646953347474,0.00903669,2616.5,2616.2,0.95594]
[1646953347672,0.00903669,2616.5,2616.3,0.552]
[1646953347872,0.00903669,2616.5,2616.4,3.5]
[1646953348072,0.00903669,2616.5,2616.4,4.736]
[1646953348073,3.669e-05,2616.5,2616.4,4.736]
[1646953348274,3.669e-05,2616.5,2616.4,6.15071244]
[1646953348579,0.70766695,2617.9,2616.5,1.384]
[1646953348580,1.17871418,2617.3,2616.5,1.384]
[1646953348872,0.0011406,2617.8,2616.7,0.384]
[1646953349074,1.17846393,2617.9,2616.8,4.052]
[1646953349473,1.17846393,2617.9,2617.0,0.9555019]
[1646953349673,1.17846393,2617.9,2617.3,0.95535]
[1646953349871,1.17846393,2617.9,2617.4,0.552]
[1646953350324,0.019483,2618.0,2617.4,0.852]
[1646953350730,0.019483,2618.0,2617.5,0.95533]
[1646953350930,0.019483,2618.0,2617.5,1.50733]
[1646953351133,0.00224235,2617.8,2617.5,1.50733]
[1646953351731,0.00224235,2617.8,2617.5,5.00733]
[1646953351931,0.00224235,2617.8,2617.5,4.3735224]
[1646953352131,0.019483,2618.0,2617.5,5.3735224]
[1646953352333,0.019483,2618.0,2617.7,0.95528]
[1646953352532,0.00439318,2617.8,2617.7,0.95528]
[1646953353331,0.019483,2618.0,2617.7,0.95528]
[1646953353534,0.0043931,2617.9,2617.8,1.5072935]
[1646953353745,0.00868376,2618.2,2617.8,1.8072935]
[1646953354375,3.50868376,2618.2,2617.8,1.8072935]
[1646953354576,0.00868376,2618.2,2617.8,1.8072935]
[1646953354771,0.00868376,2618.2,2617.8,0.3]
[1646953354972,0.00868376,2618.2,2617.7,3.210587]
[1646953355170,0.00868376,2618.2,2617.7,2.210587]
[1646953355171,3.50868376,2618.2,2617.7,2.210587]
[1646953355375,3.50868376,2618.2,2617.7,0.3]
[1646953355577,0.00868376,2618.2,2617.7,0.3]
[1646953355881,0.00868376,2618.2,2617.7,0.552]
[1646953356076,0.00223558,2618.1,2617.7,0.552]
[1646953356284,0.00223558,2618.1,2617.7,0.852]
[1646953356877,0.00868376,2618.2,2617.7,0.852]
[1646953357180,0.0022418,2618.0,2617.8,0.9555602]
[1646953357378,0.0022418,2618.0,2617.9,0.552]
[1646953357679,0.0022418,2618.0,2617.9,0.852]
[1646953358120,0.00868376,2618.2,2617.9,0.852]
[1646953358320,0.0022418,2618.1,2617.9,0.852]
[1646953358723,0.0022418,2618.1,2618.0,0.02992164]
[1646953359321,2.02014458,2618.3,2618.0,0.02992164]
[1646953359721,0.0022418,2618.2,2618.0,0.02992164]
[1646953360525,2.02014458,2618.3,2618.0,0.02992164]
[1646953360725,0.00440173,2618.2,2618.0,0.02992164]
[1646953361327,3.50440173,2618.2,2618.0,0.02992164]
[1646953361585,0.00440173,2618.2,2618.0,0.02992164]
[1646953361772,2.02014458,2618.3,2618.0,0.02992164]
[1646953362173,0.00440173,2618.2,2618.0,0.02992164]
[1646953362774,0.00440173,2618.2,2618.0,0.98542384]
[1646953362975,2.02014458,2618.3,2618.1,0.3]
[1646953363176,0.00223629,2618.2,2618.1,0.3]
[1646953363377,0.00223629,2618.2,2618.0,0.32992164]
[1646953363979,0.00223629,2618.2,2618.1,0.05987791]
[1646953364184,2.02014458,2618.3,2618.1,0.05987791]
[1646953364380,0.00220295,2618.2,2618.1,0.05987791]
[1646953364581,0.00220295,2618.2,2618.1,1.31535911]
[1646953365424,2.02014458,2618.3,2618.1,1.31535911]
[1646953365723,2.02451753,2618.3,2618.1,1.31535911]
[1646953366525,2.02014458,2618.3,2618.1,1.31535911]
[1646953366928,2.02451749,2618.3,2618.1,1.31535911]
[1646953367326,2.02451749,2618.3,2617.9,1.57662208]
[1646953367726,2.02014458,2618.3,2617.9,1.57662208]
[1646953368128,2.02014458,2618.3,2618.1,0.9554812]
[1646953368129,0.00440633,2618.2,2618.1,0.9554812]
[1646953369087,2.02014458,2618.3,2618.1,0.9554812]
[1646953369284,2.02455087,2618.3,2618.1,1.2554812]
[1646953369679,2.02455087,2618.3,2618.2,0.1154699]
[1646953370080,2.02014458,2618.3,2618.2,0.1154699]
[1646953371889,3.02014458,2618.3,2618.2,0.1154699]
[1646953372286,1.0,2618.2,2617.2,2.8665404]
[1646953372486,1.0,2618.2,2617.1,0.9558346]
[1646953372487,1.95584,2618.2,2617.1,0.9558346]
[1646953372686,11.72,2618.1,2616.5,4.6637]
[1646953372923,1.0,2617.8,2616.5,4.66797711]
[1646953373627,0.95591,2617.6,2616.7,1.9117678]
[1646953373822,1.0,2617.4,2616.7,1.9117678]
[1646953374022,1.91181,2617.8,2616.5,0.00409202]
[1646953374023,11.72,2617.7,2616.5,0.00409202]
[1646953374228,3.0,2617.4,2616.5,0.00409202]
[1646953374430,3.0,2617.2,2616.5,0.00409202]
[1646953374628,11.72,2617.4,2616.5,0.00409202]
[1646953374629,3.0,2617.1,2616.5,0.00409202]
[1646953374825,1.0,2617.1,2616.5,0.00409202]
[1646953375026,1.0,2617.1,2616.0,0.00854523]
[1646953375226,0.0011406,2617.3,2616.5,0.00409172]
[1646953375428,4.5543406,2617.6,2616.5,0.00409172]
[1646953375629,4.5543406,2617.6,2616.5,0.96013032]
[1646953375635,0.3,2617.0,2616.5,0.96013032]
[1646953375830,13.63209,2617.4,2616.5,0.96013032]
[1646953376029,1.0,2617.1,2616.6,0.3]
[1646953376231,1.0,2617.1,2616.5,0.96013032]
[1646953376232,1.0,2617.1,2616.5,0.3]
[1646953376429,1.0,2617.1,2616.5,0.00409185]
[1646953376874,14.63209,2617.4,2616.5,0.00409185]
[1646953377084,0.3,2617.0,2616.5,0.00409185]
[1646953377275,1.0,2617.0,2616.5,0.00409185]